Workbook

Sheet стр.1_6
CD1: Приложение | CT1: № 2
CD2: УТВЕРЖДЕНА
CD3: распоряжением министерства образования Кировской области
CD4: от 03.07.2018 № 5-82
CD6: Форма
A8: СОГЛАСОВАНО | BG8: УТВЕРЖДАЮ
A9: министр образования | BG9: Руководитель учреждения
A10: Кировской области
BV11: Е.В.Трубицына
A12: _______________ | P12: О.Н. Рысева | BG12: Подпись | BV12: Ф.И.О.
A13: Дата | BG13: Дата
A16: ОТЧЕТ
A17: о результатах деятельности областного государственного учреждения,
A18: подведомственного министерству образования Кировской области
A19: и об использовании закрепленного за ним
BG20: имущества за 20 | BH20: 19 | BL20: год
A22: Наименование областного
A23: государственного учреждения:
A24: Кировское областное государственное общеобразовательное бюджетное учреждение "Центр
A25: дистанционного образования детей"
B28: Идентификационный номер Налогоплательщика (ИНН) | AP28: 4345308731
B29: Код причины постановки на учет учреждения (КПП) | AP29: 434501001
B30: Единицы измерения показателей: руб.коп. | AP30: по ОКЕИ
B31: Наименование органа, осуществляющего функции и полномочия учредителя | AP31: министерство образования Кировской области
B32: Адрес фактического местонахождения областного государственного учреждения | AP32: 610044, Кировская область, г. Киров, ул. Лепсе, д.31
H34: I. Общие сведения об областном государственном учреждении
A36: 1.1. Основной вид деятельности учреждения:
A38: № п/п | F38: Код ОКВЭД | W38: Вид деятельности
A39: 1 | F39: 85.14 | W39: Образование среднее общее
A41: 1.2._Иные виды деятельности, которые учреждение вправе осуществлять в соответствии с его учредительными документами:
A43: № п/п | F43: Код ОКВЭД | W43: Вид деятельности
A44: 1 | F44: 85.12 | W44: Образование начальное общее
A45: 2 | F45: 85.13 | W45: Образование основное общее
A46: 3 | F46: 85.41 | W46: Образование дополнительное детей и взрослых
A48: 1.3._Перечень услуг (работ), которые оказываются учреждением потребителям за плату в случаях, предусмотренных нормативными правовыми актами, с указанием потребителей указанных услуг (работ):
A50: № п/п | F50: Наименование услуги (работы) | AW50: Категории потребителей услуги (работы) | BZ50: Единицы измерения показателя объема (содержания) услуги (работы)
A51: 1 | F51: Реализация программ дополнительного образования | AW51: Учащиеся | BZ51: час
A53: 1.4._Перечень разрешительных документов, на основании которых учреждение осуществляет деятельность (в случае, если виды деятельности учреждения, предусмотренные его учредительными документами, могут осуществляться только на основании специальных разрешений (лицензий):
A54: № п/п | F54: Наименование документа услуги (работы) | AW54: Номер, дата выдачи | BZ54: срок действия
A55: 1 | F55: Лицензия на право обеспечения образовательной деятельности | AW55: № 1309 от 19.06.2019 | BZ55: Бессрочно
A56: 2 | F56: Устав, утвержден министерством образования | AW56: № 2-994 от 21.12.2015
A58: 1.5. Сведения о численности работников учреждения:
A60: Наименование показателя | BI60: На начало отчетного периода | CG60: На конец отчетного периода
B61: Общее число штатных единиц учреждения | BI61: 147.55 | CG61: 147.55
B62: из них:
B63: Общее число штатных единиц административно-управленческого, административно-хозяйственного, вспомогательного и иного персонала, не принимавшего непосредственного участия в оказании учреждением государственных услуг (выполнении работ) | BI63: 19.8 | CG63: 20.8
B64: Фактическая численность сотрудников учреждений | BI64: 100 | CG64: 101
B65: из них:
B66: Общее количество сотрудников административно-управленческого, административно-хозяйственного, вспомогательного и иного персонала, не принимавшего непосредственного участия в оказании учреждением государственных услуг (выполнении работ) | BI66: 14 | CG66: 15
B67: Численность сотрудников учреждения, прошедших повышение квалификации | BI67: Х | CG67: 71
A69: 1.6. Средняя заработная плата сотрудников учреждения за отчетный период:
A71: Наименование показателя | AN71: Среднегодовая заработная плата
AN72: За счет средств областного бюджета | BK72: За счет средств от оказания платных услуг и иной приносящей доход деятельности | CL72: Итого
B73: Средняя заработная плата сотрудников учреждения | AN73: 26404.4 | BK73: 11280 | CL73: 26860.2
H75: II. Результат деятельности учреждения
A77: № п/п | G77: Наименование показателя | BA77: На начало отчетного периода | BU77: На конец отчетного периода | CO77: В % к предыдущему отчетному периоду
A78: 1 | H78: Балансовая(остаточная) стоимость нефинансовых активов | BA78: 77429690.72 | BU78: 80346299.19 | CO78: 0.037
A79: 2 | H79: Дебиторская задолженность в разрезе выплат, предусмотренных планом ФХД | BA79: 257303.82 | BU79: 419865.65 | CO79: 0.632
A80: 2.1 | H80: Расчеты по авансам по коммунальным услугам | BA80: 87764.37 | BU80: 75545.32 | CO80: -0.139
A81: 2.2 | H81: Расчеты по авансам по прочим работам, услугам | BA81: 150 | BU81: 47500.27 | CO81: -0.997
A82: 2.3 | H82: Расчеты по страховым взносам на обязательное социальное на случай временной нетрудоспособности и в связи с материнством | BA82: 138164.69 | BU82: 235940.06 | CO82: -0.708
A83: 2.4 | H83: Расчеты с плательщиками по доходам от оказания платных работ, услуг | BA83: 242.76 | BU83: 32780 | CO83: -0.74
A84: 2.5 | H84: Расчеты по земельному налогу | BA84: 30982 | BU84: 28100 | CO84: -0.093
A85: 3 | H85: Нереальная к взысканию дебиторская задолженность
A86: 4. | H86: Кредиторская задолженность в разрезе выплат, предусмотренных планом ФХД | BA86: 2445296.22 | BU86: 2546455.74 | CO86: 0.041
A87: 4.1 | H87: Расчеты по заработной плате | BA87: 1241270.86 | BU87: 1306039.49 | CO87: 0.052
A88: 4.2 | H88: Расчеты по прочим выплатам | BA88: 558.3 | BU88: 6786.11 | CO88: 0.918
A89: 4.3 | H89: Расчеты по начислениям на выплаты по оплате труда | BA89: 60221.97 | BU89: 66605.03 | CO89: 0.106
A90: 4.4 | H90: Расчеты по прочим услугам, работам | BA90: 9261 | BU90: 3555 | CO90: -0.616
A91: 4.5 | H91: Расчеты по работам, услугам по содержанию имущества | BA91: 72 | BU91: 0 | CO91: -1
A92: 4.6 | H92: Расчеты по налогу на доходы физических лиц | BA92: 338213 | BU92: 356171 | CO92: 0.053
A93: 4.7 | H93: Расчеты по страховым взносам на обязательное социальное на случай временной нетрудоспособности и в связи с материнством | BA93: 0 | BU93: 0 | CO93: 0
A94: 4.8 | H94: Расчеты по прочим платежам в бюджет | BA94: 1284 | BU94: 1284 | CO94: 0
A95: 4.9 | H95: Расчеты по страховым взносам на обязательное социальное страхование от несчастных случаев на производстве и проффесиональных заболеваний | BA95: 5514.12 | BU95: 5657.12 | CO95: 0.026
A96: 4.10 | H96: Расчеты по страховым взносам на обязательное медицинское страхование в Федеральный ФОМС | BA96: 142213.75 | BU96: 145508.03 | CO96: 0.023
A97: 4.11 | H97: Расчеты по страховым взносам на обязательное пенсионное страхование на выплату страховай части трудовой пенсии | BA97: 613471.07 | BU97: 627681.74 | CO97: 0.023
A98: 4.12 | H98: Расчеты по налогу на имущество организаций | BA98: 17228 | BU98: 11244 | CO98: -0.347
A99: 4.13 | H99: Расчеты по земельному налогу | BA99: 0 | BU99: 0
A100: 4.14 | H100: Расчеты по удержаниям из выплат по оплате труда | BA100: 15988.15 | BU100: 15924.22 | CO100: -0.004
A101: 4.15 | H101: Расчеты по прочим платежам в бюджет | BA101: 0
A102: 5 | H102: Сумма доходов, полученных учреждением от оказания платных услуг(выполнения работ) | BA102: 2481415.73 | BU102: 1931649.76 | CO102: -0.222
A103: 6 | H103: Цены, тарифы на платные услуги, оказываемые потребителям | BA103: 320 | BU103: 320 | CO103: 0
A104: 7 | H104: общее количество потребителей, воспользовавшихся услугами учреждения | BA104: 299 | BU104: 283 | CO104: -0.054
H105: в том числе: платными | BA105: 62 | BU105: 38 | CO105: -0.387
A106: 8 | H106: Количество жалоб потребителей
A107: 9 | H107: Принятые по результатам рассмотрения жалоб меры
A111: Справочно:
A113: 1) | D113: Просроченная кредиторская задолженность:
D114: на начало отчетного периода | AW114: руб.коп
D115: на конец отчетного периода | AW115: руб.коп.
A116: 2)_Общая сумма выставленных требований к возмещению ущерба по недостачам и хищениям материальных
D117: ценностей, денежных средств, а также от порчи материальных ценностей: | CL117: руб,коп.
A118: 3)_Причины образования дебиторской задолженности, нереальной к взысканию:
A120: 4)_Причины образования просроченной кредиторской задолженности:
A123: 2.1. Исполнение плана финансово-хозяйственной деятельности.
A125: Наименование показателей | Y125: Код бюджетной классификации и операции сектора государственного управления | AM125: План (с учетом возвратов) | BV125: Кассовые поступления и выплаты
AM126: всего | AW126: в том числе: | BV126: всего | CF126: в том числе:
AW127: операции по лицевым счетам, открытым в органах казначейства | BJ127: операции по счетам, открытым в кредитных организациях | CF127: операции по лицевым счетам, открытым в органах казначейства | CS127: операции по счетам, открытым в кредитных организациях
B128: Остаток средств на начало текущего финансового года | Y128: Х | AM128: 1861925.88 | AW128: 1861925.88 | BV128: 1862014.26 | CF128: 1862014.26
B129: Поступления, всего | AM129: 53900800 | AW129: 53900800 | BV129: 51401931.59 | CF129: 51401931.59
B130: в том числе:
B131: субсидии на выполнение государственного задания | Y131: х | AM131: 48960520 | AW131: 48960520 | BV131: 48960520 | CF131: 48960520
B132: субсидии на иные цели, всего | Y132: х | AM132: 2899680 | AW132: 2899680 | BV132: 464761.83 | CF132: 464761.83
B133: Поступления от оказания платных услуг (выполнения работ) и иной приносящей доход деятельности, всего | Y133: х | AM133: 2040600 | AW133: 2040600 | BV133: 1976649.76 | CF133: 1976649.76
B134: Выплаты за счет субсидии на выполнение государственного задания | Y134: 900 | AM134: =AM136+AM142+AM154+AM155+AM157+AM158+AM159+AM160 -> 50222445.88 | AW134: =AW136+AW142+AW154+AW155+AW157+AW158+AW159+AW160 -> 50222445.88 | BV134: =BV136+BV142+BV154+BV155+BV157+BV158+BV159+BV160 -> 47940469.25 | CF134: =CF136+CF142+CF154+CF155+CF157+CF158+CF159+CF160 -> 47940469.25
B135: в том числе
B136: оплата труда и начисления на выплаты по оплате труда, всего | Y136: 210 | AM136: =AM138+AM139+AM140+AM141 -> 38594500 | AW136: =AW138+AW139+AW140+AW141 -> 38594500 | BV136: =BV138+BV139+BV140+BV141 -> 38476001.99 | CF136: =CF138+CF139+CF140+CF141 -> 38476001.99
B137: из них:
B138: заработная плата | Y138: 211 | AM138: 29517400 | AW138: 29517400 | BV138: 29427476.63 | CF138: 29427476.63
B139: Прочие выплаты | Y139: 212 | AM139: 3000 | AW139: 3000 | BV139: 400 | CF139: 400
B140: начисления на выплаты по оплате труда | Y140: 213 | AM140: 9020900 | AW140: 9020900 | BV140: 8995014.87 | CF140: 8995014.87
B141: Социальные пособия и компенсации персоналу в денежной форме | Y141: 266 | AM141: 53200 | AW141: 53200 | BV141: 53110.49 | CF141: 53110.49
B142: Оплата работ, услуг, всего | Y142: 220 | AM142: =AM144+AM145+AM146+AM147+AM148+AM149+AM150 -> 10223225.88 | AW142: =AW144+AW145+AW146+AW147+AW148+AW149+AW150 -> 10223225.88 | BV142: =BV144+BV145+BV146+BV147+BV148+BV149+BV150 -> 8284290.48 | CF142: =CF144+CF145+CF146+CF147+CF148+CF149+CF150 -> 8284290.48
B143: из них:
B144: услуги связи | Y144: 221 | AM144: 5449000 | AW144: 5449000 | BV144: 3796861.5 | CF144: 3796861.5
B145: транспортные услуги | Y145: 222 | AM145: 360700 | AW145: 360700 | BV145: 359832.5 | CF145: 359832.5
B146: коммунальные услуги | Y146: 223 | AM146: 2343800 | AW146: 2343800 | BV146: 2111941.42 | CF146: 2111941.42
B147: арендная плата за пользование имуществом | Y147: 224
B148: работы, услуги по содержанию имущества | Y148: 225 | AM148: 1105125.88 | AW148: 1105125.88 | BV148: 1075023.97 | CF148: 1075023.97
B149: прочие работы, услуги | Y149: 226 | AM149: 955700 | AW149: 955700 | BV149: 931814.62 | CF149: 931814.62
B150: Страхование | Y150: 227 | AM150: 8900 | AW150: 8900 | BV150: 8816.47 | CF150: 8816.47
B151: Социальное обеспечение, всего | Y151: 260
B152: из них:
B153: пособия по социальной помощи населению | Y153: 262
B154: Налоги, пошлины и сборы | Y154: 291 | AM154: 66400 | AW154: 66400 | BV154: 64488.36 | CF154: 64488.36
B155: Приобретение основных средств | Y155: 310 | AM155: 791400 | AW155: 791400 | BV155: 572088.79 | CF155: 572088.79
B156: Приобретение нематериальных активов | Y156: 320
B157: Приобретение горюче-смазочных материалов | Y157: 343 | AM157: 77000 | AW157: 77000 | BV157: 76907 | CF157: 76907
B158: Приобретение строительных материалов | Y158: 344 | AM158: 101200 | AW158: 101200 | BV158: 98000.83 | CF158: 98000.83
B159: Приобретение прочих оборотных запасов | Y159: 346 | AM159: 360620 | AW159: 360620 | BV159: 360620 | CF159: 360620
B160: Приобретение прочих оборотных запасов | Y160: 349 | AM160: 8100 | AW160: 8100 | BV160: 8071.8 | CF160: 8071.8
B161: Выплаты за счет субсидии на иные цели | Y161: 900 | AM161: =AM163+AM169+AM181 -> 2899680 | AW161: =AW163+AW169+AW177+AW180+AW181+AW182+AW183 -> 2899680 | BV161: =BV163+BV169+BV177+BV180+BV181+BV182+BV183 -> 464761.83 | CF161: =CF163+CF169+CF177+CF180+CF181+CF182+CF183 -> 464761.83
B162: в том числе
B163: оплата труда и начисления на выплаты по оплате труда, всего | Y163: 210 | AM163: =AM165+AM167+AM168+AM166 -> 170380 | AW163: =AW165+AW167+AW168+AW166 -> 170380 | BV163: =BV165+BV167+BV168+BV166 -> 168841.64 | CF163: =CF165+CF167+CF168+CF166 -> 168841.64
B164: из них:
B165: заработная плата | Y165: 211
B166: Прочие выплаты | Y166: 212 | AM166: 160380 | AW166: 160380 | BV166: 160367.34 | CF166: 160367.34
B167: начисления на выплаты по оплате труда | Y167: 213
B168: Социальные пособия и компенсации персоналу в денежной форме | Y168: 266 | AM168: 10000 | AW168: 10000 | BV168: 8474.3 | CF168: 8474.3
B169: Оплата работ, услуг, всего | Y169: 220 | AM169: =AM171+AM172+AM173+AM174+AM175+AM176 -> 2549300 | AW169: =AW171+AW172+AW173+AW174+AW175+AW176 -> 2549300 | BV169: =BV171+BV172+BV173+BV174+BV175+BV176 -> 116107.19 | CF169: =CF171+CF172+CF173+CF174+CF175+CF176 -> 116107.19
B170: из них:
B171: услуги связи | Y171: 221
B172: транспортные услуги | Y172: 222
B173: коммунальные услуги | Y173: 223
B174: арендная плата за пользование имуществом | Y174: 224
B175: работы, услуги по содержанию имущества | Y175: 225 | AM175: 96400 | AW175: 96400 | BV175: 96108 | CF175: 96108
B176: прочие работы, услуги | Y176: 226 | AM176: 2452900 | AW176: 2452900 | BV176: 19999.19 | CF176: 19999.19
B177: Социальное обеспечение, всего | Y177: 260 | AM177: =AM179 -> 0 | AW177: =AW179 -> 0 | BV177: =BV179 -> 0 | CF177: =CF179 -> 0
B178: из них:
B179: пособия по социальной помощи населению | Y179: 262
B180: Прочие расходы | Y180: 290
B181: Приобретение основных средств | Y181: 310 | AM181: 180000 | AW181: 180000 | BV181: 179813 | CF181: 179813
B182: Приобретение нематериальных активов | Y182: 320
B183: Приобретение материальных запасов | Y183: 340
B184: Выплаты за счет иной приносящей доход деятельности | Y184: 900 | AM184: =AM186+AM191+AM199+AM202+AM204+AM205+AM206+AM203 -> 2640600 | AW184: =AW186+AW191+AW199+AW202+AW204+AW205+AW206+AW203 -> 2640600 | BV184: =BV186+BV191+BV199+BV202+BV204+BV205+BV206+BV203 -> 2208521.6 | CF184: =CF186+CF191+CF199+CF202+CF204+CF205+CF206+CF203 -> 2208521.6
B185: в том числе
B186: оплата труда и начисления на выплаты по оплате труда, всего | Y186: 210 | AM186: =AM188+AM189+AM190 -> 2518300 | AW186: =AW188+AW189+AW190 -> 2518300 | BV186: =BV188+BV189+BV190 -> 2092732.05 | CF186: =CF188+CF189+CF190 -> 2092732.05
B187: из них:
B188: заработная плата | Y188: 211 | AM188: 1930400 | AW188: 1930400 | BV188: 1613222.32 | CF188: 1613222.32
B189: начисления на выплаты по оплате труда | Y189: 213 | AM189: 580600 | AW189: 580600 | BV189: 473660.96 | CF189: 473660.96
B190: Социальные пособия и компенсации персоналу в денежной форме | Y190: 266 | AM190: 7300 | AW190: 7300 | BV190: 5848.77 | CF190: 5848.77
B191: Оплата работ, услуг, всего | Y191: 220 | AM191: =AM193+AM194+AM195+AM196+AM197+AM198 -> 18311 | AW191: =AW193+AW194+AW195+AW196+AW197+AW198 -> 18311 | BV191: =BV193+BV194+BV195+BV196+BV197+BV198 -> 14641.92 | CF191: =CF193+CF194+CF195+CF196+CF197+CF198 -> 14641.92
B192: из них:
B193: услуги связи | Y193: 221
B194: транспортные услуги | Y194: 222
B195: коммунальные услуги | Y195: 223
B196: арендная плата за пользование имуществом | Y196: 224
B197: работы, услуги по содержанию имущества | Y197: 225
B198: прочие работы, услуги | Y198: 226 | AM198: 18311 | AW198: 18311 | BV198: 14641.92 | CF198: 14641.92
B199: Социальное обеспечение, всего | Y199: 260 | AM199: =AM201 -> 0 | AW199: =AW201 -> 0 | BV199: =BV201 -> 0 | CF199: =CF201 -> 0
B200: из них:
B201: пособия по социальной помощи населению | Y201: 262
B202: Штрафы | Y202: 292 | AM202: 2300 | AW202: 2300 | BV202: 1428.61 | CF202: 1428.61
B203: Иные выплаты текущего характера | Y203: 297 | AM203: 51836 | AW203: 51836 | BV203: 51835.02 | CF203: 51835.02
B204: Приобретение основных средств | Y204: 310 | AM204: 49853 | AW204: 49853 | BV204: 47884 | CF204: 47884
B205: Приобретение нематериальных активов | Y205: 320
B206: Приобретение материальных запасов | Y206: 340
B207: Планируемый остаток средств на конец текущего финансового года | BV207: 2650193.17 | CF207: 2650193.17
H210: III. Об использовании имущества, закрепленного за учреждением
A212: № п/п | G212: Наименование показателя | BQ212: На начало отчетного периода | CK212: На конец отчетного периода
A213: 1 | H213: Общая балансовая (остаточная) стоимость недвижимого имущества, находящегося у учреждения на праве оперативного управления ( руб.коп.)* | BQ213: 3694561.88 | CK213: 3570577.88
A214: 2 | H214: Общая балансовая (остаточная) стоимость недвижимого имущества, находящегося у учреждения на праве оперативного управления и переданного в аренду ( руб.коп.)*
A215: 3 | H215: Общая балансовая (остаточная) стоимость недвижимого имущества, находящегося у учреждения на праве оперативного управления и переданного в безвозмездное пользование (руб.коп.)*
A216: 4 | H216: Общая балансовая (остаточная) стоимость движимого имущества, находящегося у учреждения на праве оперативного управления ( руб.коп.)* | BQ216: 77237575.59 | CK216: 77454491.75
A217: 5 | H217: Общая балансовая (остаточная) стоимость движимого имущества, находящегося у учреждения на праве оперативного управления и переданного в аренду (руб.коп.)*
A218: 6 | H218: Общая балансовая (остаточная) стоимость движимого имущества, находящегося у учреждения на праве оперативного управления и переданного в безвозмездное пользование ( руб.коп.)*
A219: 7 | H219: Общая балансовая (остаточная) стоимость особо ценного движимого имущества, находящегося у учреждения на праве оперативного управления (руб.коп.)* | BQ219: 68272624.96 | CK219: 71432432.16
A220: 8 | H220: Общая балансовая (остаточная) стоимость особо ценного движимого имущества, находящегося у учреждения на праве оперативного управления и переданного в аренду (руб.коп.)*
A221: 9 | H221: Общая балансовая (остаточная) стоимость особо ценного движимого имущества, находящегося у учреждения на праве оперативного управления и переданного в безвозмездное пользование (руб.коп.)*
A222: 10 | H222: Общая площадь объектов недвижимого имущества, находящегося у учреждения на праве оперативного управления (кв. м) | BQ222: 5194.1 | CK222: 4961.3
A223: 11 | H223: Общая площадь объектов недвижимого имущества, находящегося у учреждения на праве оперативного управления и переданного в аренду (кв. м)
A224: 12 | H224: Общая площадь объектов недвижимого имущества, находящегося у учреждения на праве оперативного управления и переданного в безвозмездное пользование (кв. м)
A225: 13 | H225: Общая площадь объектов недвижимого имущества, арендуемых учреждением (кв. м)
A226: 14 | H226: Количество объектов недвижимого имущества, находящегося у учреждения на праве оперативного управления (шт.) | BQ226: 2 | CK226: 1
A227: 15 | H227: Общая балансовая (остаточная) стоимость недвижимого имущества, приобретенного учреждением в отчетном финансовом году за счет средств, выделенных учреждению учредителем на указанные цели ( руб.коп.)*
A228: 16 | H228: Общая балансовая (остаточная) стоимость недвижимого имущества, приобретенного учреждением в отчетном финансовом году за счет доходов, полученных от платных услуг и иной приносящей доход деятельности (руб.коп.)*
A229: 17 | H229: Объем средств, полученных в отчетном году от распоряжения в установленном порядке имуществом, находящимся у учреждения на праве оперативного управления ( руб.коп)
F232: Главный бухгалтер Ж.Ю. Казакова
F233: Тел. 49-72-32
